bitfinex-derivatives/quotes_BNBF0:USTF0_20260114
["timestamp","ask_amount","ask_price","bid_price","bid_amount"]
[1768398974074,0.77701959,932.17,931.38,1.6044663]
[1768398974274,0.77701959,932.16,931.36,1.6044663]
[1768398974470,0.77701959,932.15,931.36,1.6044663]
[1768398974772,0.77701959,932.14,931.36,1.6044663]
[1768398974975,0.77701959,932.13,931.36,1.6044663]
[1768398975172,0.77701959,932.12,931.36,1.6044663]
[1768398975374,0.77701959,932.11,931.35,1.6044663]
[1768398975577,0.77701959,932.1,931.35,1.6044663]
[1768398975777,0.77701959,932.09,931.35,1.6044663]
[1768398975978,0.77701959,932.08,931.35,1.6044663]
[1768398976179,0.77701959,932.07,931.35,1.6044663]
[1768398976478,0.77701959,932.06,931.34,1.6044663]
[1768398976773,0.77701959,932.05,931.34,1.6044663]
[1768398976975,0.77701959,932.04,931.34,1.6044663]
[1768398977177,0.77701959,932.03,931.34,1.6044663]
[1768398977375,0.77701959,932.02,931.33,1.6044663]
[1768398977575,0.77701959,932.01,931.33,1.6044663]
[1768398977776,0.77701959,932.0,931.33,1.6044663]
[1768398977974,1.299,932.2,931.33,1.6044663]
[1768398978178,0.77615071,932.19,931.33,1.6044663]
[1768398978379,0.77615071,932.18,931.32,1.6044663]
[1768398978575,0.77615071,932.17,931.32,1.6044663]
[1768398978876,0.77615071,932.16,931.32,1.6044663]
[1768398979081,0.77615071,932.15,931.32,1.6044663]
[1768398979276,0.77615071,932.14,931.32,1.6044663]
[1768398979477,0.77615071,932.13,931.32,1.6044663]
[1768398979679,0.77615071,932.12,931.32,1.6044663]
[1768398979882,0.77615071,932.11,931.32,1.6044663]
[1768398980077,0.77615071,932.1,931.32,1.6044663]
[1768398980278,0.77615071,932.09,931.31,1.6044663]
[1768398980480,0.77615071,932.08,931.31,1.6044663]
[1768398980678,0.77615071,932.07,931.31,1.6044663]
[1768398980879,0.77615071,932.06,931.31,1.6044663]
[1768398981078,0.77615071,932.05,931.31,1.6044663]
[1768398981278,0.77615071,932.04,931.31,1.6044663]
[1768398981479,0.77615071,932.03,931.31,1.6044663]
[1768398981682,0.18660718,933.14,931.31,1.6044663]
[1768398981878,0.77562623,933.13,931.31,1.6044663]
[1768398982082,0.0123218,932.96,931.3,1.6044663]
[1768398982279,0.77562623,932.95,931.29,1.6044663]
[1768398982484,0.77562623,932.94,931.29,1.6044663]
[1768398982681,0.77562623,932.93,931.29,1.6044663]
[1768398982880,0.77562623,932.92,931.29,1.6044663]
[1768398983081,0.77562623,932.91,931.29,1.6044663]
[1768398983280,0.77562623,932.9,931.29,1.6044663]
[1768398983479,0.77562623,932.89,931.29,1.6044663]
[1768398983782,0.77562623,932.88,931.29,1.6044663]
[1768398983982,0.77562623,932.87,931.29,1.6044663]
[1768398984183,0.77562623,932.86,931.29,1.6044663]
[1768398984384,0.77562623,932.85,931.28,1.6044663]
[1768398984584,0.77562623,932.84,931.28,1.6044663]
[1768398984784,0.77562623,932.83,931.28,1.6044663]
[1768398984984,0.77562623,932.82,931.28,1.6044663]
[1768398985180,0.77562623,932.81,931.28,1.6044663]
[1768398985385,0.77562623,932.8,931.28,1.6044663]
[1768398985585,0.77562623,932.79,931.28,1.6044663]
[1768398985885,0.77562623,932.78,931.28,1.6044663]
[1768398986086,0.77562623,932.77,931.28,1.6044663]
[1768398986284,0.77562623,932.76,931.27,1.6044663]
[1768398986485,0.77562623,932.75,931.27,1.6044663]
[1768398986687,0.77562623,932.74,931.27,1.6044663]
[1768398986984,0.77562623,932.73,931.27,1.6044663]
[1768398987186,0.77562623,932.72,931.27,1.6044663]
[1768398987385,0.77562623,932.71,931.27,1.6044663]
[1768398987585,0.77562623,932.7,931.27,1.6044663]
[1768398987886,0.7751072,932.69,931.27,1.6044663]
[1768398988085,0.7751072,932.68,931.27,1.6044663]
[1768398988288,0.7751072,932.67,931.26,1.6044663]
[1768398988485,0.7751072,932.66,931.26,1.6044663]
[1768398988689,0.7751072,932.65,931.26,1.6044663]
[1768398988889,0.812,933.12,931.26,1.6044663]
[1768398988890,0.7751072,932.64,931.26,1.6044663]
[1768398989086,0.7751072,932.63,931.26,1.6044663]
[1768398989287,0.7751072,932.62,931.26,1.6044663]
[1768398989489,0.7751072,932.61,931.26,1.6044663]
[1768398989688,0.7751072,932.6,931.26,1.6044663]
[1768398989986,0.7751072,932.59,931.26,1.6044663]
[1768398990186,0.812,933.12,931.26,1.6044663]
[1768398991087,0.77510113,933.11,931.26,1.6044663]
[1768398991292,0.812,933.12,931.25,1.6044663]
[1768398991293,0.77510113,933.1,931.25,1.6044663]
[1768398991590,0.77510113,933.09,931.25,1.6044663]
[1768398991792,0.77510113,933.08,931.25,1.6044663]
[1768398991993,0.77510113,933.07,931.25,1.6044663]
[1768398992189,0.77510113,933.06,931.25,1.6044663]
[1768398992492,0.77510113,933.05,931.25,1.6044663]
[1768398992792,0.77510113,933.04,931.17,0.18660618]
[1768398993090,0.77510113,933.03,931.17,0.18660618]
[1768398993292,0.77510113,933.02,931.17,0.18660618]
[1768398993492,0.77510113,933.01,931.17,0.18660618]
[1768398993693,0.77510113,933.0,931.17,0.18660618]
[1768398993988,0.77510113,932.99,931.17,0.18660618]
[1768398994190,0.77510113,932.98,931.17,0.18660618]
[1768398994394,0.77510113,932.97,931.17,0.18660618]
[1768398994594,0.77510113,932.96,931.17,0.18660618]
[1768398994894,0.77510113,932.95,931.17,0.18660618]
[1768398995194,0.77510113,932.94,931.17,0.18660618]
[1768398995394,0.77510113,932.93,931.17,0.18660618]
[1768398995590,0.77510113,932.92,931.17,0.18660618]
[1768398995792,0.77510113,932.91,931.17,0.18660618]
[1768398995993,0.77510113,932.9,931.17,0.18660618]
[1768398996193,0.77510113,932.89,931.17,0.18660618]
[1768398996492,0.77510113,932.88,931.17,0.18660618]
[1768398996693,0.77510113,932.87,931.17,0.18660618]
[1768398996896,0.77510113,932.86,931.17,0.18660618]
[1768398997094,0.77510113,932.85,931.17,0.18660618]
[1768398997297,0.77510113,932.84,931.17,0.18660618]
[1768398997498,0.77510113,932.83,931.17,0.18660618]
[1768398997707,0.77510113,932.82,931.17,0.18660618]
[1768398998006,0.7742086,932.81,931.17,0.18660618]
[1768398998207,0.7742086,932.8,931.17,0.18660618]
[1768398998404,0.7742086,932.79,931.17,0.18660618]
[1768398998609,0.7742086,932.78,931.17,0.18660618]
[1768398998805,0.7742086,932.77,931.17,0.18660618]
[1768398999004,0.7742086,932.76,931.17,0.18660618]
[1768398999203,0.7742086,932.75,931.03,1.6044663]
[1768398999405,0.7742086,932.74,931.01,1.6044663]
[1768398999606,0.7742086,932.73,931.03,0.18667875]
[1768398999804,0.7742086,932.72,931.03,0.18667875]
[1768399000104,0.812,933.12,931.03,0.18667875]
[1768399000105,0.7742086,932.71,931.03,0.18667875]
[1768399000308,0.7742086,932.7,931.03,0.18667875]
[1768399000506,0.7742086,932.69,931.03,0.18667875]
[1768399000704,0.7742086,932.68,931.03,0.18667875]
[1768399001008,0.7742086,932.67,931.03,0.18667875]
[1768399001206,0.7742086,932.66,931.03,0.18667875]
[1768399001408,0.7742086,932.65,931.03,0.18667875]
[1768399001608,0.7742086,932.64,931.03,0.18667875]
[1768399001809,0.7742086,932.63,931.03,0.18667875]
[1768399002008,0.7742086,932.62,931.03,0.18667875]
[1768399002312,0.7742086,932.61,931.03,0.18667875]
[1768399002513,0.77383621,932.6,931.03,0.18667875]
[1768399002711,0.812,933.12,931.03,0.18667875]
[1768399002712,0.77383621,932.59,931.03,0.18667875]
[1768399002910,0.77383621,932.58,931.03,0.18667875]
[1768399003213,0.77383621,932.57,931.03,0.18667875]
[1768399003413,0.77383621,932.56,931.03,0.18667875]
[1768399003609,0.77383621,932.55,931.03,0.18667875]
[1768399003811,0.812,933.12,931.03,0.18667875]
[1768399004815,0.7748508,933.11,931.03,0.18667875]
[1768399005017,0.7748508,933.1,931.03,0.18667875]
[1768399005316,0.7748508,933.09,931.03,0.18667875]
[1768399005517,0.7748508,933.08,931.03,0.18667875]
[1768399005816,0.7748508,933.07,931.03,0.18667875]
[1768399006010,0.7748508,933.06,931.03,0.18667875]
[1768399006211,0.7748508,933.05,931.03,0.18667875]
[1768399006411,0.7748508,933.04,931.03,0.18667875]
[1768399006615,0.7748508,933.03,931.03,0.18667875]
[1768399006815,0.7748508,933.02,931.03,0.18667875]
[1768399007012,0.7748508,933.01,931.03,1.79114505]
[1768399007216,0.7748508,933.0,931.03,1.79114505]
[1768399007415,0.7748508,932.99,931.03,1.79114505]
[1768399007615,0.7748508,932.98,931.03,1.79114505]
[1768399007818,0.7748508,932.97,931.03,1.79114505]
[1768399008018,0.7748508,932.96,931.03,1.79114505]
[1768399008316,0.7748508,932.95,931.04,1.6044663]
[1768399008614,0.7748508,932.94,931.04,1.6044663]
[1768399008818,0.7748508,932.93,931.04,1.6044663]
[1768399009019,0.7748508,932.92,931.04,1.6044663]
[1768399009220,0.7748508,932.91,931.04,1.6044663]
[1768399009417,0.7748508,932.9,931.04,1.6044663]
[1768399009721,0.812,933.12,931.04,1.6044663]
[1768399009722,0.7748508,932.89,931.04,1.6044663]
[1768399009922,0.7748508,932.88,931.04,1.6044663]
[1768399010122,0.7748508,932.87,931.04,1.6044663]
[1768399010323,0.7748508,932.86,931.04,1.6044663]
[1768399010623,0.7748508,932.85,931.04,1.6044663]
[1768399010824,0.7748508,932.84,931.04,1.6044663]
[1768399011022,0.7748508,932.83,931.04,1.6044663]
[1768399011225,0.7748508,932.82,931.04,1.6044663]
[1768399011422,0.7748508,932.81,931.05,1.6044663]
[1768399011624,0.7753806,932.8,931.09,1.6044663]
[1768399011822,0.7753806,932.79,931.09,1.6044663]
[1768399012020,0.7753806,932.78,931.09,1.6044663]
[1768399012222,0.7753806,932.77,931.09,1.6044663]
[1768399012423,0.18660718,933.14,931.09,1.6044663]
[1768399012424,0.7753806,932.76,931.09,1.6044663]
[1768399012624,0.7753806,932.75,931.09,1.6044663]
[1768399012825,0.7753806,932.74,931.09,1.6044663]
[1768399013025,0.7753806,932.73,931.09,1.6044663]
[1768399013224,0.7753806,932.72,931.1,1.6044663]
[1768399013427,0.7753806,932.71,931.1,1.6044663]
[1768399013628,0.7753806,932.7,931.1,1.6044663]
[1768399013829,0.7753806,932.69,931.1,1.6044663]
[1768399014024,0.7753806,932.68,931.1,1.6044663]
[1768399014223,0.18660718,933.14,931.1,1.6044663]
[1768399014224,0.7753806,932.67,931.1,1.6044663]
[1768399014426,0.7753806,932.66,931.11,1.6044663]
[1768399014625,0.7753806,932.65,931.18,1.6044663]
[1768399014825,0.7753806,932.64,931.18,1.6044663]
[1768399015029,0.7753806,932.63,931.18,1.6044663]
[1768399015229,0.7753806,932.62,931.18,1.6044663]
[1768399015429,0.7753806,932.61,931.19,1.6044663]
[1768399015625,0.7753806,932.6,931.19,1.6044663]
[1768399015926,0.7753806,932.59,931.19,1.6044663]
[1768399016226,0.7753806,932.58,931.2,1.6044663]
[1768399016431,0.7753806,932.57,931.2,1.6044663]
[1768399016725,0.7753806,932.56,931.2,1.6044663]
[1768399016930,0.7753806,932.55,931.2,1.6044663]
[1768399017133,0.7753806,932.54,931.2,1.6044663]
[1768399017328,0.7753806,932.53,931.2,1.6044663]
[1768399017527,0.7753806,932.52,931.21,1.6044663]
[1768399017828,0.7753806,932.51,931.21,1.6044663]
[1768399018031,0.7753806,932.5,931.21,1.6044663]
[1768399018231,0.7753806,932.49,931.21,1.6044663]
[1768399018429,0.7753806,932.48,931.21,1.6044663]
[1768399018632,0.7753806,932.47,931.21,1.6044663]
[1768399018830,0.7753806,932.46,931.21,1.6044663]
[1768399019130,0.7753806,932.45,931.21,1.6044663]
[1768399019333,0.7753806,932.44,931.29,1.6044663]
[1768399019533,0.7753806,932.43,931.29,1.6044663]
[1768399019732,0.7753806,932.42,931.29,1.6044663]
[1768399019933,0.988,932.62,931.29,1.6044663]
[1768399019934,0.7753806,932.41,931.29,1.6044663]
[1768399020229,0.7753806,932.4,931.29,1.6044663]
[1768399020430,0.7753806,932.39,931.29,1.6044663]
[1768399020733,0.7753806,932.38,931.29,1.6044663]
[1768399021028,0.7753806,932.37,931.29,1.6044663]
[1768399021234,0.7753806,932.36,931.29,1.6044663]
[1768399021430,0.7753806,932.35,931.29,1.6044663]
[1768399021630,0.7753806,932.34,931.29,1.6044663]
[1768399021831,0.7753806,932.33,931.29,1.6044663]
[1768399022034,0.7753806,932.32,931.29,1.6044663]
[1768399022236,0.77671953,932.31,931.29,1.6044663]
[1768399022431,0.77671953,932.3,931.29,1.6044663]
[1768399022632,0.77671953,932.29,931.29,1.6044663]
[1768399022834,0.988,932.62,931.29,1.6044663]
[1768399022835,0.77671953,932.28,931.29,1.6044663]
[1768399023032,0.77671953,932.27,931.29,1.6044663]
[1768399023335,0.77671953,932.26,931.29,1.6044663]
[1768399023533,0.77671953,932.25,931.29,1.6044663]
[1768399023734,0.77674202,932.24,931.29,1.6044663]
[1768399023937,0.77674202,932.23,931.29,1.6044663]
[1768399024237,0.77674202,932.22,931.3,1.6044663]
[1768399024433,0.77674202,932.21,931.3,1.6044663]
[1768399024638,0.77674202,932.2,931.3,1.6044663]
[1768399024834,0.77674202,932.19,931.3,1.6044663]
[1768399025138,0.77674202,932.18,931.3,1.6044663]
[1768399025338,0.77674202,932.17,931.3,1.6044663]
[1768399025535,0.77674202,932.16,931.3,1.6044663]
[1768399025838,0.77674202,932.15,931.33,1.6044663]
[1768399026040,0.77674202,932.14,931.4,1.6044663]
[1768399026336,0.988,932.62,931.49,1.6044663]
[1768399026538,0.77678819,932.61,931.49,1.6044663]
[1768399026736,0.77678819,932.6,931.49,1.6044663]
[1768399026939,0.77678819,932.59,931.49,1.6044663]
[1768399027235,0.77678819,932.58,931.49,1.6044663]
[1768399027441,0.77678819,932.57,931.48,1.6044663]
[1768399027634,0.77678819,932.56,931.48,1.6044663]
[1768399027835,0.77678819,932.55,931.48,1.6044663]
[1768399028035,0.77678819,932.54,931.48,1.6044663]
[1768399028236,0.77678819,932.53,931.48,1.6044663]
[1768399028539,0.77678819,932.52,931.47,1.6044663]
[1768399028736,0.77678819,932.51,931.47,1.6044663]
[1768399028941,0.77678819,932.5,931.47,1.6044663]
[1768399029142,0.77678819,932.49,931.47,1.6044663]
[1768399029341,0.77678819,932.48,931.46,1.6044663]
[1768399029542,0.77678819,932.47,931.46,1.6044663]
[1768399029743,0.77678819,932.46,931.46,1.6044663]
[1768399030042,0.77678819,932.45,931.46,1.6044663]
[1768399030243,0.77678819,932.44,931.45,1.6044663]
[1768399030440,0.77678819,932.43,931.45,1.6044663]
[1768399030744,0.77678819,932.42,931.45,1.6044663]
[1768399030940,0.77678819,932.41,931.45,1.6044663]
[1768399031245,0.77678819,932.4,931.45,1.6044663]
[1768399031544,0.77678819,932.4,931.22,0.18661869]
[1768399031545,0.77678819,932.39,931.44,1.6044663]
[1768399031741,0.77678819,932.38,931.44,1.6044663]
[1768399031943,0.77678819,932.37,931.44,1.6044663]
[1768399032142,0.77678819,932.36,931.44,1.6044663]
[1768399032442,0.77678819,932.35,931.43,1.6044663]
[1768399032643,0.77678819,932.34,931.43,1.6044663]
[1768399032842,0.77678819,932.33,931.43,1.6044663]
[1768399033146,0.77678819,932.32,931.43,1.6044663]
[1768399033447,0.77678819,932.31,931.43,1.6044663]
[1768399033747,0.77678819,932.3,931.43,1.6044663]
[1768399033948,0.77678819,932.29,931.43,1.6044663]
[1768399034142,0.77678819,932.28,931.43,1.6044663]
[1768399034343,0.988,932.62,931.42,1.6044663]
[1768399034548,0.77585514,932.61,931.42,1.6044663]
[1768399034748,0.77585514,932.6,931.42,1.6044663]
[1768399034947,0.77585514,932.59,931.42,1.6044663]
[1768399035146,0.77585514,932.58,931.42,1.6044663]
[1768399035344,0.77585514,932.57,931.41,1.6044663]
[1768399035548,0.77585514,932.56,931.41,1.6044663]
[1768399035746,0.77585514,932.55,931.41,1.6044663]
[1768399035949,0.77585514,932.54,931.41,1.6044663]
[1768399036249,0.77585514,932.53,931.41,1.6044663]
[1768399036550,0.77585514,932.52,931.41,1.6044663]
[1768399036746,0.77585514,932.51,931.41,1.6044663]
[1768399036945,0.77585514,932.5,931.41,1.6044663]
[1768399037146,0.77585514,932.49,931.33,1.6044663]
[1768399037345,0.77585514,932.49,931.22,0.18661869]
[1768399037346,0.77585514,932.48,931.31,1.6044663]
[1768399037646,0.77585514,932.47,931.31,1.6044663]
[1768399037843,0.77585514,932.46,931.31,1.6044663]
[1768399038047,0.77585514,932.45,931.31,1.6044663]
[1768399038248,0.77585514,932.44,931.31,1.6044663]
[1768399038446,0.77585514,932.43,931.31,1.6044663]
[1768399038645,0.77585514,932.42,931.31,1.6044663]
[1768399038846,0.77585514,932.41,931.31,1.6044663]
[1768399039045,0.77585514,932.4,931.31,1.6044663]
[1768399039349,0.77585514,932.39,931.32,1.6044663]
[1768399039546,0.988,932.62,931.32,1.6044663]
[1768399039547,0.77585514,932.38,931.32,1.6044663]
[1768399039745,0.77585514,932.37,931.32,1.6044663]
[1768399039949,0.77585514,932.36,931.32,1.6044663]
[1768399040247,0.77585514,932.35,931.32,1.6044663]
[1768399040448,0.77585514,932.34,931.32,1.6044663]
[1768399040644,0.77585514,932.33,931.32,1.6044663]
[1768399040848,0.77585514,932.32,931.32,1.6044663]
[1768399041148,0.77585514,932.31,931.32,1.6044663]
[1768399041346,0.77585514,932.3,931.32,1.6044663]
[1768399041546,0.77585514,932.29,931.32,1.6044663]
[1768399041744,0.77585514,932.28,931.32,1.6044663]
[1768399041949,0.77585514,932.27,931.32,1.6044663]
[1768399042149,0.77585514,932.26,931.32,1.6044663]
[1768399042449,0.77585514,932.25,931.32,1.6044663]
[1768399042645,0.77585514,932.24,931.32,1.6044663]
[1768399042850,0.77585514,932.23,931.32,1.6044663]
[1768399043047,0.77585514,932.22,931.32,1.6044663]
[1768399043248,0.77585514,932.21,931.32,1.6044663]
[1768399043449,0.988,932.62,931.33,1.6044663]
[1768399043747,0.77551301,932.61,931.33,1.6044663]
[1768399043948,0.77551301,932.6,931.33,1.6044663]
[1768399044148,0.77551301,932.59,931.33,1.6044663]
[1768399044446,0.77551301,932.58,931.33,1.6044663]
[1768399044648,0.77551301,932.57,931.33,1.6044663]
[1768399044848,0.77551301,932.56,931.33,1.6044663]
[1768399045152,0.77551301,932.55,931.33,1.6044663]
[1768399045348,0.77551301,932.54,931.34,1.6044663]
[1768399045652,0.77551301,932.53,931.34,1.6044663]
[1768399045951,0.77551301,932.52,931.34,1.6044663]
[1768399046152,0.77551301,932.51,931.34,1.6044663]
[1768399046353,0.77551301,932.51,931.22,0.18661869]
[1768399046354,0.77551301,932.5,931.35,1.6044663]
[1768399046552,0.77551301,932.49,931.35,1.6044663]
[1768399046753,0.77551301,932.48,931.35,1.6044663]
[1768399047053,0.77551301,932.47,931.35,1.6044663]
[1768399047249,0.77551301,932.46,931.35,1.6044663]
[1768399047450,0.77551301,932.45,931.35,1.6044663]
[1768399047655,0.77551301,932.44,931.35,1.6044663]
[1768399047953,0.77551301,932.43,931.35,1.6044663]
[1768399048151,0.77551301,932.42,931.35,1.6044663]
[1768399048353,0.77551301,932.41,931.35,1.6044663]
[1768399048551,0.77551301,932.4,931.35,1.6044663]
[1768399048750,0.77551301,932.39,931.35,1.6044663]
[1768399049050,0.77551301,932.38,931.35,1.6044663]
[1768399049251,0.77551301,932.37,931.36,1.6044663]
[1768399049452,0.77551301,932.36,931.36,1.6044663]
[1768399049651,0.77551301,932.35,931.36,1.6044663]
[1768399049852,0.77551301,932.34,931.36,1.6044663]
[1768399050054,0.77551301,932.33,931.36,1.6044663]
[1768399050255,0.77551301,932.32,931.36,1.6044663]
[1768399050453,0.77612236,932.31,931.36,1.6044663]
[1768399050653,0.77612236,932.3,931.36,1.6044663]
[1768399050857,0.77612236,932.29,931.36,1.6044663]
[1768399051057,0.77612236,932.28,931.36,1.6044663]
[1768399051354,0.988,932.62,931.36,1.6044663]
[1768399051654,0.988,932.62,931.37,1.6044663]
[1768399055364,0.988,932.62,931.38,1.6044663]
[1768399055564,0.77664771,932.61,931.38,1.6044663]
[1768399055763,0.77664771,932.6,931.38,1.6044663]
[1768399055960,0.77664771,932.59,931.38,1.6044663]
[1768399056161,0.77664771,932.58,931.38,1.6044663]
[1768399056460,0.77664771,932.57,931.39,1.6044663]
[1768399056664,0.77664771,932.56,931.39,1.6044663]
[1768399056864,0.77664771,932.55,931.39,1.6044663]
[1768399057060,0.77664771,932.54,931.39,1.6044663]
[1768399057262,0.77664771,932.53,931.4,1.6044663]
[1768399057460,0.77664771,932.52,931.4,1.6044663]
[1768399057665,0.77664771,932.51,931.4,1.6044663]
[1768399057962,0.77664771,932.5,931.4,1.6044663]
[1768399058163,0.77664771,932.49,931.4,1.6044663]
[1768399058465,0.77664771,932.48,931.41,1.6044663]
[1768399058662,0.77664771,932.47,931.41,1.6044663]
[1768399058865,0.77664771,932.46,931.41,1.6044663]
[1768399059061,0.77664771,932.45,931.41,1.6044663]
[1768399059266,0.77664771,932.44,931.41,1.6044663]
[1768399059466,0.77664771,932.43,931.41,1.6044663]
[1768399059666,0.988,932.62,931.41,1.6044663]
[1768399059667,0.77664771,932.42,931.41,1.6044663]
[1768399059863,0.77664771,932.41,931.41,1.6044663]
[1768399060167,0.77664771,932.4,931.41,1.6044663]
[1768399060363,0.77664771,932.39,931.42,1.6044663]
[1768399060562,0.77664771,932.38,931.42,1.6044663]
[1768399060763,0.77664771,932.37,931.42,1.6044663]
[1768399060963,0.77664771,932.36,931.42,1.6044663]
[1768399061166,0.77664771,932.35,931.42,1.6044663]
[1768399061468,0.77664771,932.34,931.43,1.6044663]
[1768399061763,0.77664771,932.33,931.43,1.6044663]
[1768399061966,0.77664771,932.32,931.43,1.6044663]
[1768399062266,0.77664771,932.31,931.43,1.6044663]
[1768399062467,0.77664771,932.3,931.44,1.6044663]
[1768399062663,0.77664771,932.29,931.44,1.6044663]
[1768399062867,0.77664771,932.28,931.44,1.6044663]
[1768399063067,0.77664771,932.27,931.44,1.6044663]
[1768399063268,0.77664771,932.26,931.44,1.6044663]
[1768399063563,0.77664771,932.25,931.44,1.6044663]
[1768399063763,0.77664771,932.24,931.44,1.6044663]
[1768399063967,0.77664771,932.23,931.44,1.6044663]
[1768399064168,0.988,932.62,931.44,1.6044663]
[1768399064370,0.77734388,932.61,931.45,1.6044663]
[1768399064667,0.77734388,932.6,931.45,1.6044663]
[1768399064865,0.77734388,932.59,931.45,1.6044663]
[1768399065065,0.77734388,932.58,931.45,1.6044663]
[1768399065265,0.77734388,932.57,931.45,1.6044663]
[1768399065469,0.77734388,932.56,931.45,1.6044663]
[1768399065663,0.77734388,932.55,931.45,1.6044663]
[1768399065867,0.77734388,932.54,931.45,1.6044663]
[1768399066067,0.77734388,932.53,931.45,1.6044663]
[1768399066265,0.77734388,932.52,931.45,1.6044663]
[1768399066464,0.77734388,932.51,931.45,1.6044663]
[1768399066668,0.77734388,932.5,931.45,1.6044663]
[1768399066963,0.77734388,932.49,931.45,1.6044663]
[1768399067168,0.77734388,932.48,931.45,1.6044663]
[1768399067470,0.77734388,932.47,931.46,1.6044663]
[1768399067669,0.77734388,932.46,931.46,1.6044663]
[1768399067969,0.77734388,932.45,931.46,1.6044663]
[1768399068170,0.77734388,932.44,931.46,1.6044663]
[1768399068471,0.77734388,932.43,931.46,1.6044663]
[1768399068670,0.77734388,932.42,931.46,1.6044663]
[1768399068866,0.18661869,933.04,931.46,1.6044663]
[1768399068867,0.77734388,932.41,931.46,1.6044663]
[1768399069166,0.77734388,932.4,931.43,1.6044663]
[1768399069370,0.77734388,932.39,931.43,1.6044663]
[1768399069568,0.77734388,932.38,931.43,1.6044663]
[1768399069766,0.77734388,932.37,931.43,1.6044663]
[1768399069969,0.77734388,932.36,931.43,1.6044663]
[1768399070167,0.77734388,932.35,931.43,1.6044663]
[1768399070367,0.77734388,932.34,931.44,1.6044663]
[1768399070569,0.77734388,932.33,931.44,1.6044663]
[1768399070767,0.77734388,932.32,931.44,1.6044663]
[1768399071072,0.77734388,932.31,931.44,1.6044663]
[1768399071371,0.77734388,932.3,931.44,1.6044663]
[1768399071671,0.77734388,932.29,931.44,1.6044663]
[1768399071968,0.77734388,932.28,931.44,1.6044663]
[1768399072177,0.77734388,932.27,931.45,1.6044663]
[1768399072370,1.074,932.36,931.46,1.6044663]
[1768399072575,0.77791685,932.35,931.46,1.6044663]
[1768399072775,0.77791685,932.34,931.46,1.6044663]
[1768399072975,0.77791685,932.33,931.46,1.6044663]
[1768399073173,0.77791685,932.32,931.46,1.6044663]
[1768399073377,0.77791685,932.31,931.46,1.6044663]
[1768399073576,0.77791685,932.3,931.46,1.6044663]
[1768399073779,0.77791685,932.29,931.46,1.6044663]
[1768399073978,0.77791685,932.28,931.46,1.6044663]
[1768399074179,0.77791685,932.27,931.46,1.6044663]
[1768399074377,0.77791685,932.26,931.46,1.6044663]
[1768399074580,0.77791685,932.25,931.46,1.6044663]
[1768399074781,0.77791685,932.24,931.48,1.6044663]
[1768399074978,0.77791685,932.23,931.48,1.6044663]
[1768399075178,0.77791685,932.22,931.48,1.6044663]
[1768399075480,0.77791685,932.21,931.48,1.6044663]
[1768399075676,1.074,932.36,931.48,1.6044663]
[1768399075677,0.77791685,932.2,931.48,1.6044663]
[1768399075876,0.77791685,932.19,931.48,1.6044663]
[1768399076083,0.77791685,932.18,931.48,1.6044663]
[1768399076278,0.77791685,932.17,931.48,1.6044663]
[1768399076478,0.77791685,932.16,931.48,1.6044663]
[1768399076781,0.77791685,932.15,931.48,1.6044663]
[1768399077083,0.77791685,932.14,931.48,1.6044663]
[1768399077279,0.77791685,932.13,931.49,1.6044663]
[1768399077580,0.77791685,932.12,931.49,1.6044663]
[1768399077782,0.77791685,932.11,931.49,1.6044663]
[1768399077979,0.77791685,932.1,931.49,1.6044663]
[1768399078185,0.77791685,932.09,931.49,1.6044663]
[1768399078484,0.77791685,932.08,931.5,1.6044663]
[1768399078680,0.77791685,932.07,931.5,1.6044663]
[1768399078880,0.77791685,932.06,931.5,1.6044663]
[1768399079084,0.77791685,932.05,931.5,1.6044663]
[1768399079280,0.77791685,932.04,931.5,1.6044663]
[1768399079481,0.77791685,932.03,931.5,1.6044663]
[1768399079681,1.074,932.36,931.5,1.6044663]
[1768399079881,0.77838123,932.35,931.5,1.6044663]
[1768399080182,0.77838123,932.34,931.5,1.6044663]
[1768399080382,0.77838123,932.33,931.51,1.6044663]
[1768399080581,0.77838123,932.32,931.51,1.6044663]
[1768399080785,0.77838123,932.31,931.51,1.6044663]
[1768399081085,0.77838123,932.3,931.51,1.6044663]
[1768399081286,0.77838123,932.29,931.52,1.6044663]
[1768399081483,0.77838123,932.28,931.52,1.6044663]
[1768399081681,1.074,932.36,931.52,1.6044663]
[1768399081682,0.77838123,932.27,931.52,1.6044663]
[1768399081885,0.77838123,932.26,931.52,1.6044663]
[1768399082085,0.77838123,932.25,931.52,1.6044663]
[1768399082385,0.77838123,932.24,931.52,1.6044663]
[1768399082581,0.77838123,932.23,931.52,1.6044663]
[1768399082781,0.77838123,932.22,931.52,1.6044663]
[1768399082981,0.77838123,932.21,931.56,1.6044663]
[1768399083280,1.074,932.36,931.56,1.6044663]
[1768399083281,0.77838123,932.2,931.56,1.6044663]
[1768399083583,0.77838123,932.19,931.56,1.6044663]
[1768399083782,0.77838123,932.18,931.56,1.6044663]
[1768399084086,1.074,932.36,931.69,1.6044663]
[1768399084287,0.77881072,932.35,931.67,1.6044663]
[1768399084583,0.77881072,932.34,931.67,1.6044663]
[1768399084780,1.074,932.36,931.67,1.6044663]
[1768399084781,0.77881072,932.33,931.67,1.6044663]
[1768399084981,0.77881072,932.32,931.67,1.6044663]